fUSD/lending_fUSD_20240225
["ID","MTS","AMOUNT","RATE_DAILY","PERIOD"]
[315151783,1708890649611,-546.61,0.00023999,2]
[315151784,1708890649621,-546.61,0.00023999,2]
[315151785,1708890649631,-546.61,0.00023999,2]
[315151786,1708890649640,-12467.15769012,0.00024,30]
[315151787,1708890649657,-16901.97606143,0.00024,30]
[315151788,1708890649669,-609408.94152194,0.00024,30]
[315151789,1708890649681,-319843.17834019,0.00024,30]
[315151790,1708890649693,-77708.30972393,0.00024,30]
[315151791,1708890649705,-3278.53782691,0.00024,30]
[315151792,1708890649718,-858.21016671,0.00024,30]
[315151793,1708890649736,-488.7655902,0.00024,30]
[315151794,1708890649759,-546.61,0.00023999,2]
[315151795,1708890649771,-2146.58807195,0.00024,30]
[315151796,1708890649784,-1731.63841217,0.00024,30]
[315151797,1708890649797,-5267.69317017,0.00024,30]
[315151798,1708890650071,-546.61,0.00023999,2]
[315151799,1708890650081,-546.61,0.00023999,2]
[315151800,1708890650091,-546.61,0.00023999,2]
[315151801,1708890650102,-546.61,0.00023999,2]
[315151802,1708890650111,-59291.35807361,0.00024,30]
[315151803,1708890663945,204.0,0.00022825,2]
[315151804,1708890670452,5111843.71045796,0.00023,2]
[315151805,1708890692491,1068.05793078,0.0001,2]
[315151806,1708890695275,1655.68507365,0.0002,2]
[315151807,1708890697053,3213.41986157,0.00011,2]
[315151809,1708890701841,172.11,0.00022957,2]
[315151810,1708890702243,169.59,0.00022957,2]
[315151811,1708890704749,36476.0,0.00022824,2]
[315151812,1708890713054,2066.27282225,0.00021,4]
[315151813,1708890714469,4543.63631666,6.94e-05,2]
[315151814,1708890715656,535.41,0.00022952,2]
[315151815,1708890721608,4754.14640047,0.000155,2]
[315151816,1708890725905,821.08409184,0.0002,2]
[315151817,1708890727897,1178.09635257,0.000199,3]
[315151818,1708890743533,2990.06,0.00022942,2]
[315151823,1708890781397,86590.48744843,0.000218,2]
[315151824,1708890784480,810.23299976,0.000225,2]
[315151830,1708890828343,283.40950878,0.000142,2]
[315151832,1708890831593,1338.02828053,0.000181,2]
[315151833,1708890833237,127369.86205816,0.00023,2]
[315151834,1708890840254,812.42,0.00020994,2]
[315151837,1708890847848,250.0,0.00022907,2]
[315151840,1708890850848,21823.05384875,0.0002,2]
[315151845,1708890865690,1096.24663586,0.00018,2]
[315151846,1708890867766,1552.90923183,0.000137,2]
[315151847,1708890882922,13204.54,0.00022907,2]
[315151848,1708890908093,1413.74,0.00023,4]
[315151849,1708890920918,500.0,0.00023,2]
[315151850,1708890951831,163.92,0.0002288,2]
[315151851,1708890958410,1285.82,0.0002288,2]
[315151852,1708890983121,2181.84,0.00022877,2]
[315151853,1708890984176,8952.93,0.00022877,2]
[315151854,1708891016900,537.48,0.00022856,2]
[315151855,1708891045714,151.0,0.00026772,120]
[315151856,1708891054370,206.0,0.0002289,2]
[315151857,1708891077488,500.0,0.0002284,2]
[315151858,1708891108581,6579.57,0.00022836,2]
[315151859,1708891149222,150.0,0.00022832,2]
[315151860,1708891182940,571.67,0.00022834,2]
[315151861,1708891268345,2491.72,0.00022843,2]
[315151862,1708891354163,396.97662475,0.00020915,2]
[315151863,1708891354192,374.81337525,0.00020915,2]
[315151865,1708891566519,151.0,0.00026753,120]
[315151874,1708891774248,2076.43,0.00022782,2]
[315151876,1708891830108,150.0,0.00022484,2]
[315151879,1708891834759,-169.59,0.00022805,2]
[315151880,1708891834769,-542.66,0.00022811,2]
[315151881,1708891834778,-268.74,0.00022853,2]
[315151882,1708891834788,-817.06977846,0.0002288,2]
[315151883,1708891834797,-206.0,0.00022952,2]
[315151884,1708891834807,-156.00979887,0.0002299,2]
[315151885,1708891834817,-150.1,0.00023,2]
[315151886,1708891834826,-1413.74,0.00023,4]
[315151887,1708891834835,-540.0,0.0002309,2]
[315151888,1708891834845,-771.79,0.00023179,2]
[315151889,1708891834855,-300.0,0.00023299,2]
[315151890,1708891834864,-540.0,0.000233,2]
[315151891,1708891834874,-2946.0,0.000233,2]
[315151892,1708891834885,-540.0,0.000235,2]
[315151893,1708891834894,-490.72,0.0002367,2]
[315151894,1708891834903,-540.0,0.0002371,2]
[315151895,1708891834913,-222.0401712,0.00023779,2]
[315151896,1708891834926,-468.4307,0.0002378,2]
[315151897,1708891834939,-520.07,0.00023788,2]
[315151898,1708891834949,-222.04017115,0.00023796,2]
[315151899,1708891834958,-1744.82,0.00023797,2]
[315151900,1708891834968,-678.46894941,0.00023798,2]
[315151901,1708891834978,-678.46894936,0.00023798,2]
[315151902,1708891834988,-678.46894936,0.00023798,2]
[315151903,1708891834997,-678.46894936,0.00023805,2]
[315151904,1708891835006,-200.0,0.00023808,2]
[315151905,1708891835016,-200.0,0.00023808,2]
[315151906,1708891835026,-575.55,0.00023808,2]
[315151907,1708891835036,-222.04017115,0.00023814,2]
[315151908,1708891835046,-678.46894936,0.00023821,2]
[315151909,1708891835055,-222.04017115,0.00023831,2]
[315151910,1708891835067,-678.46894936,0.00023836,2]
[315151912,1708891835077,-500.0,0.00023846,2]
[315151914,1708891835087,-500.0,0.00023846,2]
[315151916,1708891835096,-500.0,0.00023846,2]
[315151918,1708891835105,-500.0,0.00023846,2]
[315151920,1708891835115,-500.0,0.00023846,2]
[315151922,1708891835125,-500.0,0.00023846,2]
[315151924,1708891835135,-500.0,0.00023846,2]
[315151926,1708891835145,-500.0,0.00023846,2]
[315151928,1708891835154,-500.0,0.00023846,2]
[315151930,1708891835163,-500.0,0.00023846,2]
[315151932,1708891835173,-500.0,0.00023846,2]
[315151934,1708891835183,-500.0,0.00023846,2]
[315151936,1708891835192,-500.0,0.00023846,2]
[315151938,1708891835202,-500.0,0.00023846,2]
[315151941,1708891835214,-500.0,0.00023846,2]
[315151943,1708891835224,-500.0,0.00023846,2]
[315151945,1708891835234,-506.47,0.00023846,2]
[315151947,1708891835244,-500.0,0.00023846,2]
[315151949,1708891835254,-500.0,0.00023846,2]
[315151951,1708891835263,-500.0,0.00023846,2]
[315151953,1708891835273,-500.0,0.00023846,2]
[315151955,1708891835283,-500.0,0.00023846,2]
[315151957,1708891835292,-500.0,0.00023846,2]
[315151959,1708891835302,-500.0,0.00023846,2]
[315151961,1708891835311,-500.0,0.00023846,2]
[315151963,1708891835321,-560.64,0.00023846,2]
[315151965,1708891835331,-500.0,0.00023846,2]
[315151967,1708891835341,-500.0,0.00023846,2]
[315151969,1708891835352,-500.0,0.00023846,2]
[315151971,1708891835363,-500.0,0.00023846,2]
[315151973,1708891835373,-500.0,0.00023846,2]
[315151976,1708891835385,-500.0,0.00023846,2]
[315151978,1708891835395,-410.62662907,0.00023846,2]
[315151980,1708891835405,-16303.6620588,0.00023846,2]
[315151982,1708891835418,-1049.68453788,0.00023846,2]
[315151984,1708891835430,-1030.78743666,0.00023846,2]
[315151987,1708891835446,-829.40445832,0.00023846,2]
[315151989,1708891835456,-222.04017115,0.00023848,2]
[315151991,1708891835465,-678.46894936,0.00023852,2]
[315151993,1708891835474,-500.0,0.00023857,2]
[315151995,1708891835484,-500.0,0.00023857,2]
[315151997,1708891835494,-273.75247391,0.00023857,2]
[315151999,1708891835504,-344.88839203,0.00023857,2]
[315152001,1708891835514,-500.0,0.00023857,2]
[315152003,1708891835524,-522.28826326,0.00023857,2]
[315152005,1708891835534,-500.0,0.00023857,2]
[315152007,1708891835543,-514.98,0.00023857,2]
[315152009,1708891835553,-512.72562527,0.00023857,2]
[315152011,1708891835563,-500.0,0.00023857,2]
[315152013,1708891835572,-531.73,0.00023857,2]
[315152016,1708891835582,-500.0,0.00023857,2]
[315152018,1708891835592,-500.0,0.00023857,2]
[315152020,1708891835601,-500.0,0.00023857,2]
[315152021,1708891835611,-500.0,0.00023857,2]
[315152023,1708891835620,-269.71844524,0.00023857,2]
[315152025,1708891835632,-500.0,0.00023857,2]
[315152027,1708891835642,-500.0,0.00023857,2]
[315152028,1708891835651,-500.0,0.00023857,2]
[315152030,1708891835661,-500.0,0.00023857,2]
[315152047,1708891835935,-500.0,0.00023857,2]
[315152048,1708891835958,-500.0,0.00023857,2]
[315152049,1708891835974,-500.0,0.00023857,2]
[315152050,1708891835984,-500.0,0.00023857,2]
[315152051,1708891835994,-500.0,0.00023857,2]
[315152052,1708891836006,-331.18322146,0.00023857,2]
[315152053,1708891836020,-168.81677854,0.00023857,2]
[315152054,1708891836030,-459.60322146,0.00023857,2]
[315152055,1708891836042,-40.39677854,0.00023857,2]
[315152056,1708891836054,-500.0,0.00023857,2]
[315152057,1708891836064,-500.0,0.00023857,2]
[315152058,1708891836074,-500.0,0.00023857,2]
[315152059,1708891836084,-500.0,0.00023857,2]
[315152060,1708891836093,-500.0,0.00023857,2]
[315152061,1708891836103,-459.05609628,0.00023857,2]
[315152062,1708891836113,-570.98834088,0.00023857,2]
[315152063,1708891836122,-500.0,0.00023857,2]
[315152064,1708891836133,-19213.53849166,0.0002386,2]
[315152065,1708891836143,-222.04017115,0.00023865,2]
[315152066,1708891836153,-678.46894936,0.00023868,2]
[315152067,1708891836163,-9512.37381476,0.00023873,2]
[315152068,1708891836175,-919.3516368,0.00023873,2]
[315152069,1708891836188,-8781.8130401,0.00023873,2]
[315152070,1708891836197,-322.0,0.00023874,2]
[315152071,1708891836207,-150.659,0.00023874,2]
[315152072,1708891836217,-338.0,0.00023874,2]
[315152073,1708891836226,-1137.0,0.00023874,2]
[315152074,1708891836237,-2905.0,0.00023874,2]
[315152075,1708891836246,-162.0,0.00023874,2]
[315152076,1708891836256,-390.0,0.00023874,2]
[315152077,1708891836266,-298.0,0.00023874,2]
[315152078,1708891836276,-4081.0,0.00023874,2]
[315152079,1708891836286,-2202.12795988,0.00023874,2]
[315152080,1708891836299,-93.87204012,0.00023874,2]
[315152081,1708891836308,-948.49002133,0.00023874,2]
[315152082,1708891836325,-91.50997867,0.00023874,2]
[315152083,1708891836334,-157.55422432,0.00023878,2]
[315152084,1708891836344,-155.0,0.00023878,2]
[315152085,1708891836354,-13.73655199,0.00023878,2]
[315152086,1708891836367,-531.13344801,0.00023878,2]
[315152087,1708891836376,-500.0,0.00023878,2]
[315152088,1708891836387,-500.0,0.00023878,2]
[315152089,1708891836397,-224.42416516,0.00023878,2]
[315152090,1708891836406,-500.0,0.00023878,2]
[315152091,1708891836416,-617.53,0.00023878,2]
[315152092,1708891836426,-500.0,0.00023878,2]
[315152093,1708891836435,-500.0,0.00023878,2]
[315152094,1708891836445,-500.0,0.00023878,2]
[315152095,1708891836455,-500.0,0.00023878,2]
[315152096,1708891836464,-211.50811097,0.00023879,2]
[315152097,1708891836474,-500.0,0.00023879,2]
[315152098,1708891836484,-500.0,0.00023879,2]
[315152099,1708891836494,-601.62044776,0.00023879,2]
[315152100,1708891836504,-500.0,0.00023879,2]
[315152101,1708891836513,-500.0,0.00023879,2]
[315152102,1708891836524,-500.0,0.00023879,2]
[315152103,1708891836534,-500.0,0.00023879,2]
[315152104,1708891836543,-1398.55,0.00023879,2]
[315152105,1708891836553,-1398.55,0.00023879,2]
[315152106,1708891836563,-1398.55,0.00023879,2]
[315152107,1708891836573,-1398.55,0.00023879,2]
[315152108,1708891836583,-500.0,0.00023879,2]
[315152109,1708891836593,-490.68718469,0.00023879,2]
[315152110,1708891836604,-500.0,0.00023879,2]
[315152111,1708891836614,-562.594387,0.00023879,2]
[315152112,1708891836623,-500.0,0.00023879,2]
[315152113,1708891836634,-500.0,0.00023879,2]
[315152114,1708891836644,-500.0,0.00023879,2]
[315152115,1708891836653,-500.0,0.00023879,2]
[315152116,1708891836667,-1717.89,0.00023879,2]
[315152117,1708891836677,-1717.89,0.00023879,2]
[315152118,1708891836687,-1717.89,0.00023879,2]
[315152119,1708891836697,-500.0,0.00023879,2]
[315152120,1708891836708,-500.0,0.00023879,2]
[315152121,1708891836717,-500.0,0.00023879,2]
[315152122,1708891836727,-500.0,0.00023879,2]
[315152123,1708891836736,-500.0,0.00023879,2]
[315152124,1708891836746,-500.0,0.00023879,2]
[315152125,1708891836756,-500.0,0.00023879,2]
[315152126,1708891836765,-500.0,0.00023879,2]
[315152127,1708891836775,-500.0,0.00023879,2]
[315152128,1708891836784,-500.0,0.00023879,2]
[315152129,1708891836794,-500.0,0.00023879,2]
[315152130,1708891836803,-542.54,0.00023879,2]
[315152131,1708891836813,-500.0,0.00023879,2]
[315152132,1708891836822,-542.54,0.00023879,2]
[315152133,1708891836831,-542.54,0.00023879,2]
[315152134,1708891836841,-542.54,0.00023879,2]
[315152135,1708891836850,-500.0,0.00023879,2]
[315152136,1708891836860,-500.0,0.00023879,2]
[315152137,1708891836869,-500.0,0.00023879,2]
[315152138,1708891836879,-500.0,0.00023879,2]
[315152139,1708891836888,-500.0,0.00023879,2]
[315152140,1708891836898,-500.0,0.00023879,2]
[315152141,1708891836907,-500.0,0.00023879,2]
[315152142,1708891836917,-500.0,0.00023879,2]
[315152143,1708891836926,-500.0,0.00023879,2]
[315152144,1708891836940,-500.0,0.00023879,2]
[315152145,1708891836949,-500.0,0.00023879,2]
[315152146,1708891836959,-500.0,0.00023879,2]
[315152147,1708891836969,-500.0,0.00023879,2]
[315152148,1708891836979,-500.0,0.00023879,2]
[315152149,1708891836989,-500.0,0.00023879,2]
[315152150,1708891836998,-500.0,0.00023879,2]
[315152151,1708891837008,-500.0,0.00023879,2]
[315152152,1708891837019,-500.0,0.00023879,2]
[315152153,1708891837029,-500.0,0.00023879,2]
[315152154,1708891837038,-500.0,0.00023879,2]
[315152155,1708891837048,-500.0,0.00023879,2]
[315152156,1708891837057,-500.0,0.00023879,2]
[315152157,1708891837066,-500.0,0.00023879,2]
[315152158,1708891837075,-500.0,0.00023879,2]
[315152159,1708891837084,-299.32,0.00023879,2]
[315152160,1708891837093,-500.0,0.00023879,2]
[315152161,1708891837103,-500.0,0.00023879,2]
[315152162,1708891837112,-500.0,0.00023879,2]
[315152163,1708891837121,-500.0,0.00023879,2]
[315152164,1708891837131,-500.0,0.00023879,2]
[315152165,1708891837140,-500.0,0.00023879,2]
[315152166,1708891837150,-345.96,0.00023879,2]
[315152167,1708891837159,-500.0,0.00023879,2]
[315152168,1708891837169,-500.0,0.00023879,2]
[315152169,1708891837178,-500.0,0.00023879,2]
[315152170,1708891837187,-500.0,0.00023879,2]
[315152171,1708891837196,-500.0,0.00023879,2]
[315152172,1708891837205,-500.0,0.00023879,2]
[315152173,1708891837214,-500.0,0.00023879,2]
[315152174,1708891837223,-500.0,0.00023879,2]
[315152175,1708891837232,-500.0,0.00023879,2]
[315152176,1708891837241,-500.0,0.00023879,2]
[315152177,1708891837251,-500.0,0.00023879,2]
[315152178,1708891837261,-500.0,0.00023879,2]
[315152179,1708891837270,-500.0,0.00023879,2]
[315152180,1708891837280,-500.0,0.00023879,2]
[315152181,1708891837289,-500.0,0.00023879,2]
[315152182,1708891837299,-500.0,0.00023879,2]
[315152183,1708891837308,-500.0,0.00023879,2]
[315152184,1708891837317,-500.0,0.00023879,2]
[315152185,1708891837327,-500.0,0.00023879,2]
[315152186,1708891837337,-500.0,0.00023879,2]
[315152187,1708891837347,-500.0,0.00023879,2]
[315152188,1708891837356,-500.0,0.00023879,2]
[315152189,1708891837366,-500.0,0.00023879,2]
[315152190,1708891837375,-500.0,0.00023879,2]
[315152191,1708891837386,-500.0,0.00023879,2]
[315152192,1708891837396,-500.0,0.00023879,2]
[315152193,1708891837405,-500.0,0.00023879,2]
[315152194,1708891837415,-500.0,0.00023879,2]
[315152195,1708891837424,-500.0,0.00023879,2]
[315152196,1708891837434,-500.0,0.00023879,2]
[315152197,1708891837443,-500.0,0.00023879,2]
[315152198,1708891837452,-500.0,0.00023879,2]
[315152199,1708891837461,-500.0,0.00023879,2]
[315152200,1708891837472,-500.0,0.00023879,2]
[315152201,1708891837482,-500.0,0.00023879,2]
[315152202,1708891837492,-500.0,0.00023879,2]
[315152203,1708891837501,-500.0,0.00023879,2]
[315152204,1708891837511,-500.0,0.00023879,2]
[315152205,1708891837520,-500.0,0.00023879,2]
[315152206,1708891837530,-500.0,0.00023879,2]
[315152207,1708891837539,-514.71491277,0.00023879,2]
[315152208,1708891837549,-500.0,0.00023879,2]
[315152209,1708891837558,-500.0,0.00023879,2]
[315152210,1708891837568,-628.58,0.00023879,2]
[315152211,1708891837580,-500.0,0.00023879,2]
[315152212,1708891837589,-563.33,0.00023879,2]
[315152213,1708891837599,-563.33,0.00023879,2]
[315152214,1708891837609,-563.33,0.00023879,2]
[315152215,1708891837618,-549.09,0.00023879,2]
[315152216,1708891837629,-500.0,0.00023879,2]
[315152217,1708891837639,-500.0,0.00023879,2]
[315152218,1708891837648,-500.0,0.00023879,2]
[315152219,1708891837657,-500.0,0.00023879,2]
[315152220,1708891837667,-500.0,0.00023879,2]
[315152221,1708891837676,-500.0,0.00023879,2]
[315152222,1708891837685,-500.0,0.00023879,2]
[315152223,1708891837695,-500.0,0.00023879,2]
[315152224,1708891837704,-500.0,0.00023879,2]
[315152225,1708891837714,-500.0,0.00023879,2]
[315152226,1708891837723,-500.0,0.00023879,2]
[315152227,1708891837733,-500.0,0.00023879,2]
[315152228,1708891837743,-500.0,0.00023879,2]
[315152229,1708891837752,-500.0,0.00023879,2]
[315152230,1708891837761,-545.88369973,0.00023879,2]
[315152231,1708891837771,-500.0,0.00023879,2]
[315152232,1708891837780,-500.0,0.00023879,2]
[315152233,1708891837789,-500.0,0.00023879,2]
[315152234,1708891837798,-500.0,0.00023879,2]
[315152235,1708891837807,-500.0,0.00023879,2]
[315152236,1708891837816,-500.0,0.00023879,2]
[315152237,1708891837826,-500.0,0.00023879,2]
[315152238,1708891837835,-500.0,0.00023879,2]
[315152239,1708891837845,-500.0,0.00023879,2]
[315152240,1708891837854,-500.0,0.00023879,2]
[315152241,1708891837863,-500.0,0.00023879,2]
[315152242,1708891837872,-254.66924314,0.00023879,2]
[315152243,1708891837883,-500.0,0.00023879,2]
[315152244,1708891837893,-500.0,0.00023879,2]
[315152245,1708891837902,-446.78772129,0.00023879,2]
[315152246,1708891837911,-500.0,0.00023879,2]
[315152247,1708891837921,-500.0,0.00023879,2]
[315152248,1708891837930,-500.0,0.00023879,2]
[315152249,1708891837944,-500.0,0.00023879,2]
[315152250,1708891837953,-967.8,0.00023879,2]
[315152251,1708891837962,-500.0,0.00023879,2]
[315152252,1708891837972,-500.0,0.00023879,2]
[315152253,1708891837983,-967.8,0.00023879,2]
[315152254,1708891837992,-500.0,0.00023879,2]
[315152255,1708891838001,-967.8,0.00023879,2]
[315152256,1708891838010,-967.8,0.00023879,2]
[315152257,1708891838020,-500.0,0.00023879,2]
[315152258,1708891838029,-500.0,0.00023879,2]
[315152259,1708891838040,-500.0,0.00023879,2]
[315152260,1708891838050,-500.0,0.00023879,2]
[315152261,1708891838059,-500.0,0.00023879,2]
[315152262,1708891838068,-500.0,0.00023879,2]
[315152263,1708891838077,-500.0,0.00023879,2]
[315152264,1708891838086,-500.0,0.00023879,2]
[315152265,1708891838095,-500.0,0.00023879,2]
[315152266,1708891838105,-542.45,0.00023879,2]
[315152267,1708891838114,-500.0,0.00023879,2]
[315152268,1708891838123,-500.0,0.00023879,2]
[315152269,1708891838133,-500.0,0.00023879,2]
[315152270,1708891838142,-500.0,0.00023879,2]
[315152271,1708891838151,-500.0,0.00023879,2]
[315152272,1708891838160,-500.0,0.00023879,2]
[315152273,1708891838169,-500.0,0.00023879,2]
[315152274,1708891838179,-500.0,0.00023879,2]
[315152275,1708891838188,-500.0,0.00023879,2]
[315152276,1708891838197,-419.88873898,0.00023879,2]
[315152277,1708891838207,-500.0,0.00023879,2]
[315152278,1708891838217,-500.0,0.00023879,2]
[315152279,1708891838226,-500.0,0.00023879,2]
[315152280,1708891838236,-673.4,0.00023879,2]
[315152281,1708891838245,-673.4,0.00023879,2]
[315152282,1708891838255,-673.4,0.00023879,2]
[315152283,1708891838265,-673.4,0.00023879,2]
[315152284,1708891838275,-500.0,0.00023879,2]
[315152285,1708891838284,-500.0,0.00023879,2]
[315152286,1708891838293,-500.0,0.00023879,2]
[315152287,1708891838303,-500.0,0.00023879,2]
[315152288,1708891838312,-500.0,0.00023879,2]
[315152289,1708891838321,-500.0,0.00023879,2]
[315152290,1708891838331,-500.0,0.00023879,2]
[315152291,1708891838340,-500.0,0.00023879,2]
[315152292,1708891838350,-500.0,0.00023879,2]
[315152293,1708891838359,-500.0,0.00023879,2]
[315152294,1708891838368,-500.0,0.00023879,2]
[315152295,1708891838378,-500.0,0.00023879,2]
[315152296,1708891838388,-500.0,0.00023879,2]
[315152297,1708891838397,-500.0,0.00023879,2]
[315152298,1708891838407,-500.0,0.00023879,2]
[315152299,1708891838417,-500.0,0.00023879,2]
[315152300,1708891838426,-500.0,0.00023879,2]
[315152301,1708891838436,-500.0,0.00023879,2]
[315152302,1708891838445,-500.0,0.00023879,2]
[315152303,1708891838455,-500.0,0.00023879,2]
[315152304,1708891838465,-500.0,0.00023879,2]
[315152305,1708891838474,-500.0,0.00023879,2]
[315152306,1708891838483,-500.0,0.00023879,2]
[315152307,1708891838493,-500.0,0.00023879,2]
[315152308,1708891838503,-500.0,0.00023879,2]
[315152309,1708891838512,-500.0,0.00023879,2]
[315152310,1708891838522,-500.0,0.00023879,2]
[315152311,1708891838531,-500.0,0.00023879,2]
[315152312,1708891838540,-1177.72,0.00023879,2]
[315152313,1708891838550,-1177.72,0.00023879,2]
[315152314,1708891838560,-1177.72,0.00023879,2]
[315152315,1708891838569,-1177.72,0.00023879,2]
[315152316,1708891838579,-269.77014374,0.00023879,2]
[315152317,1708891838599,-230.22985626,0.00023879,2]
[315152318,1708891838609,-500.0,0.00023879,2]
[315152319,1708891838620,-219.79514374,0.00023879,2]
[315152320,1708891838646,-280.20485626,0.00023879,2]
[315152321,1708891838656,-102.52014374,0.00023879,2]
[315152322,1708891838668,-397.47985626,0.00023879,2]
[315152323,1708891838677,-500.0,0.00023879,2]
[315152324,1708891838686,-500.0,0.00023879,2]
[315152325,1708891838696,-500.0,0.00023879,2]
[315152326,1708891838705,-500.0,0.00023879,2]
[315152327,1708891838715,-45.89993584,0.00023879,2]
[315152328,1708891838727,-454.10006416,0.00023879,2]
[315152329,1708891838737,-500.0,0.00023879,2]
[315152330,1708891838746,-500.0,0.00023879,2]
[315152331,1708891838755,-500.0,0.00023879,2]
[315152332,1708891838764,-500.0,0.00023879,2]
[315152333,1708891838773,-354.24035213,0.00023879,2]
[315152334,1708891838786,-145.75964787,0.00023879,2]
[315152335,1708891838795,-132.84913622,0.00023879,2]
[315152336,1708891838806,-1054.29086378,0.00023879,2]
[315152337,1708891838815,-229.16,0.00023879,2]
[315152338,1708891838825,-118.79919323,0.00023879,2]
[315152339,1708891838836,-764.36761815,0.00023879,2]
[315152340,1708891839082,-303.97318862,0.00023879,2]
[315152341,1708891839091,-447.43962549,0.00023879,2]
[315152342,1708891839102,-739.70037451,0.00023879,2]
[315152343,1708891839111,-1.57686504,0.00023879,2]
[315152344,1708891839123,-420.8888349,0.00023879,2]
[315152345,1708891839136,-313.89851893,0.00023879,2]
[315152346,1708891839147,-450.77578113,0.00023879,2]
[315152347,1708891839157,-500.0,0.00023879,2]
[315152348,1708891839166,-500.0,0.00023879,2]
[315152349,1708891839175,-500.0,0.00023879,2]
[315152350,1708891839185,-500.0,0.00023879,2]
[315152351,1708891839194,-500.0,0.00023879,2]
[315152352,1708891839204,-500.0,0.00023879,2]
[315152353,1708891839213,-500.0,0.00023879,2]
[315152354,1708891839222,-500.0,0.00023879,2]
[315152355,1708891839232,-500.0,0.00023879,2]
[315152356,1708891839241,-500.0,0.00023879,2]
[315152357,1708891839250,-500.0,0.00023879,2]
[315152358,1708891839260,-500.0,0.00023879,2]
[315152359,1708891839269,-270.35701588,0.00023879,2]
[315152360,1708891839281,-69.47896558,0.00023879,2]
[315152361,1708891839291,-500.0,0.00023879,2]
[315152362,1708891839300,-170.84517053,0.00023879,2]
[315152363,1708891839316,-329.15482947,0.00023879,2]
[315152364,1708891839325,-127.43489109,0.00023879,2]
[315152365,1708891839337,-372.56510891,0.00023879,2]
[315152366,1708891839347,-542.79,0.00023879,2]
[315152367,1708891839356,-500.0,0.00023879,2]
[315152368,1708891839366,-500.0,0.00023879,2]
[315152369,1708891839376,-500.0,0.00023879,2]
[315152370,1708891839386,-266.13,0.00023879,2]
[315152371,1708891839396,-500.0,0.00023879,2]
[315152372,1708891839406,-500.0,0.00023879,2]
[315152373,1708891839416,-500.0,0.00023879,2]
[315152374,1708891839426,-320.23,0.00023879,2]
[315152375,1708891839436,-500.0,0.00023879,2]
[315152376,1708891839446,-500.0,0.00023879,2]
[315152377,1708891839456,-559.98548955,0.00023879,2]
[315152378,1708891839465,-500.0,0.00023879,2]
[315152379,1708891839475,-500.0,0.00023879,2]
[315152380,1708891839485,-500.0,0.00023879,2]
[315152381,1708891839495,-500.0,0.00023879,2]
[315152382,1708891839505,-283.67543273,0.00023879,2]
[315152383,1708891839515,-500.0,0.00023879,2]
[315152384,1708891839524,-500.0,0.00023879,2]
[315152385,1708891839534,-500.0,0.00023879,2]
[315152386,1708891839543,-405.6631951,0.00023879,2]
[315152387,1708891839553,-500.0,0.00023879,2]
[315152388,1708891839562,-500.0,0.00023879,2]
[315152389,1708891839572,-500.0,0.00023879,2]
[315152390,1708891839582,-500.0,0.00023879,2]